bitfinex/quotes_BTCUSD_20240819
["timestamp","ask_amount","ask_price","bid_price","bid_amount"]
[1724077674063,0.00123167,58508.0,58507.0,3.02778951]
[1724077674261,0.00123167,58508.0,58507.0,3.01578951]
[1724077674463,0.00123167,58508.0,58507.0,3.00778951]
[1724077674693,0.00123167,58508.0,58507.0,3.01478951]
[1724077674958,0.06173167,58508.0,58507.0,2.58294577]
[1724077675338,0.06173167,58508.0,58507.0,2.93178477]
[1724077676621,0.06173167,58508.0,58507.0,3.03178477]
[1724077677020,0.00123167,58508.0,58507.0,3.37362377]
[1724077680933,0.00123167,58508.0,58507.0,3.03178477]
[1724077681367,0.06263167,58508.0,58507.0,3.03178477]
[1724077681771,0.06263167,58508.0,58507.0,2.56694577]
[1724077681979,0.15086973,58508.0,58507.0,0.211919]
[1724077682367,0.15086973,58508.0,58507.0,0.553758]
[1724077682544,0.15086973,58508.0,58507.0,0.041]
[1724077682753,0.66361873,58508.0,58507.0,0.041]
[1724077682952,0.74725444,58508.0,58507.0,0.041]
[1724077683147,1.08908744,58508.0,58507.0,0.041]
[1724077683354,0.253136,58502.0,58487.0,0.0009009]
[1724077683552,0.0604,58498.0,58491.0,0.51369139]
[1724077683773,0.0822,58496.0,58492.0,1.5]
[1724077683972,0.0822,58496.0,58494.0,0.170956]
[1724077683973,0.0604,58495.0,58494.0,0.170956]
[1724077684177,0.0604,58495.0,58494.0,0.512871]
[1724077684382,0.0604,58495.0,58492.0,1.5]
[1724077684593,0.250858,58494.0,58491.0,0.00141162]
[1724077684795,0.003,58501.0,58491.0,0.00141162]
[1724077684796,0.1404,58492.0,58491.0,0.00141162]
[1724077685008,0.14973223,58492.0,58491.0,0.00041162]
[1724077685219,0.14973223,58492.0,58491.0,0.00141162]
[1724077685838,0.14973223,58492.0,58491.0,0.51430962]
[1724077686274,0.14973223,58492.0,58491.0,0.00141162]
[1724077686665,0.14973223,58492.0,58491.0,0.00041162]
[1724077687218,0.14973223,58492.0,58491.0,0.17137762]
[1724077687427,0.14973223,58492.0,58491.0,0.51330962]
[1724077687628,0.15373223,58492.0,58491.0,0.51330962]
[1724077688378,0.1444,58492.0,58491.0,0.85524162]
[1724077688530,0.1444,58492.0,58491.0,2.35524162]
[1724077688808,0.1444,58492.0,58491.0,2.01330962]
[1724077689781,0.1444,58492.0,58491.0,1.67137762]
[1724077690003,0.1444,58492.0,58491.0,2.01330962]
[1724077690210,0.1444,58492.0,58491.0,2.35524162]
[1724077691318,0.0658,58492.0,58491.0,2.35524162]
[1724077691696,0.143,58492.0,58491.0,0.00041162]
[1724077692469,0.143,58492.0,58491.0,0.51330962]
[1724077692721,0.143,58492.0,58491.0,0.85524162]
[1724077693125,0.0658,58492.0,58491.0,0.85524162]
[1724077693682,0.0658,58492.0,58491.0,1.67137762]
[1724077693905,0.0608,58492.0,58491.0,1.67137762]
[1724077694624,0.0608,58492.0,58491.0,2.01330962]
[1724077696368,0.0608,58492.0,58491.0,1.67137762]
[1724077696621,0.0608,58492.0,58491.0,2.01330962]
[1724077696851,0.0608,58492.0,58491.0,1.67137762]
[1724077697323,0.0508,58492.0,58491.0,1.67227852]
[1724077697769,0.0508,58492.0,58491.0,2.01421052]
[1724077698116,0.0508,58492.0,58491.0,1.67227852]
[1724077698341,0.0508,58492.0,58491.0,2.01421052]
[1724077698686,0.0508,58492.0,58491.0,2.35614252]
[1724077698896,0.0508,58492.0,58491.0,2.01421052]
[1724077699298,0.0508,58492.0,58491.0,1.67227852]
[1724077699500,0.1274,58492.0,58491.0,0.17227852]
[1724077700583,0.1174,58492.0,58491.0,0.17227852]
[1724077700823,0.1174,58492.0,58491.0,0.00131252]
[1724077700975,0.288363,58492.0,58491.0,0.00131252]
[1724077701377,1.49783244,58492.0,58491.0,0.00131252]
[1724077701571,1.51381398,58492.0,58491.0,0.00131252]
[1724077702489,1.16888698,58492.0,58491.0,0.00131252]
[1724077702736,1.17188698,58492.0,58491.0,0.00131252]
[1724077702940,1.51381398,58492.0,58491.0,0.00131252]
[1724077703139,1.65805571,58492.0,58491.0,0.00131252]
[1724077703340,0.940075,58488.0,58487.0,0.0009009]
[1724077703539,1.54039493,58488.0,58487.0,0.0009009]
[1724077703776,1.54039493,58488.0,58487.0,7e-08]
[1724077703777,1.59090367,58488.0,58487.0,7e-08]
[1724077703978,1.75825244,58488.0,58487.0,7e-08]
[1724077704169,1.19344493,58488.0,58487.0,7e-08]
[1724077704375,1.16812377,58488.0,58487.0,7e-08]
[1724077704615,1.20045059,58488.0,58487.0,0.00100007]
[1724077705052,1.20045039,58488.0,58487.0,0.00100007]
[1724077705471,0.85850039,58488.0,58487.0,0.00100007]
[1724077705893,0.17422662,58488.0,58487.0,0.00100007]
[1724077706105,0.32921623,58488.0,58487.0,0.00100007]
[1724077706552,0.33421623,58488.0,58487.0,0.00200007]
[1724077706967,0.16324123,58488.0,58487.0,0.00200007]
[1724077707170,0.16324123,58488.0,58487.0,0.17297807]
[1724077707171,0.0737,58488.0,58487.0,0.17297807]
[1724077707379,0.0737,58488.0,58487.0,0.00200007]
[1724077708016,0.0667,58488.0,58487.0,7e-08]
[1724077708228,0.0617,58488.0,58487.0,0.85489007]
[1724077708435,0.025,58488.0,58487.0,0.51493407]
[1724077708640,0.025,58488.0,58487.0,0.93649007]
[1724077708861,0.025,58488.0,58487.0,2.43649007]
[1724077709087,0.025,58488.0,58487.0,2.77844607]
[1724077709295,0.025,58488.0,58487.0,2.94979484]
[1724077709502,0.025,58488.0,58487.0,3.30197544]
[1724077709714,0.011,58488.0,58487.0,3.48617544]
[1724077709921,0.012,58488.0,58487.0,3.48617544]
[1724077710150,0.012,58488.0,58487.0,3.82813144]
[1724077710364,0.000819,58492.0,58491.0,1.196762]
[1724077710566,0.000819,58492.0,58491.0,1.47351077]
[1724077710783,0.000819,58492.0,58491.0,1.91544277]
[1724077711658,0.000819,58492.0,58491.0,1.91540077]
[1724077711858,0.000819,58492.0,58491.0,1.57346877]
[1724077712825,0.000819,58492.0,58491.0,0.954788]
[1724077713027,0.000819,58492.0,58491.0,2.459788]
[1724077713696,0.000819,58492.0,58491.0,1.775924]
[1724077713895,0.000819,58492.0,58491.0,0.177924]
[1724077714310,0.000819,58492.0,58491.0,1.677924]
[1724077715244,0.000819,58492.0,58491.0,2.461788]
[1724077715663,0.000819,58492.0,58491.0,2.80372]
[1724077716901,0.060919,58492.0,58491.0,0.277924]
[1724077717102,0.07026373,58492.0,58491.0,0.277924]
[1724077717284,0.07026373,58492.0,58491.0,0.619856]
[1724077717285,0.07026366,58492.0,58491.0,0.619856]
[1724077718024,0.07026366,58492.0,58491.0,0.007]
[1724077718263,0.07026366,58492.0,58491.0,0.177966]
[1724077718468,0.07026366,58492.0,58491.0,0.519898]
[1724077718871,0.01016366,58492.0,58491.0,0.517898]
[1724077719092,0.01016366,58492.0,58491.0,0.005]
[1724077719501,0.01416366,58492.0,58491.0,0.171966]
[1724077720137,0.02016366,58492.0,58491.0,0.172966]
[1724077720711,0.01416366,58492.0,58491.0,0.171966]
[1724077720884,0.01416366,58492.0,58491.0,0.513898]
[1724077721086,0.01616366,58492.0,58491.0,0.171966]
[1724077721283,0.01216366,58492.0,58491.0,0.512898]
[1724077721514,0.01216366,58492.0,58491.0,1.196762]
[1724077721717,0.01616366,58492.0,58491.0,1.196762]
[1724077721874,0.01616366,58492.0,58491.0,0.85483]
[1724077722080,0.0602,58491.0,58489.0,0.17097]
[1724077722477,0.0602,58491.0,58487.0,7e-08]
[1724077722478,0.170975,58488.0,58487.0,7e-08]
[1724077722694,0.00934466,58488.0,58487.0,7e-08]
[1724077723110,0.02533307,58488.0,58487.0,7e-08]
[1724077723666,0.88120807,58488.0,58487.0,0.00200007]
[1724077723865,1.04775721,58488.0,58487.0,0.00200007]
[1724077724070,1.04575721,58488.0,58487.0,0.00200007]
[1724077724276,1.38970721,58488.0,58487.0,0.00200007]
[1724077724446,1.64365598,58488.0,58487.0,7e-08]
[1724077724649,2.02279805,58488.0,58487.0,7e-08]
[1724077724853,2.15355796,58488.0,58487.0,7e-08]
[1724077725052,1.93079483,58488.0,58487.0,7e-08]
[1724077725471,2.02687525,58488.0,58487.0,7e-08]
[1724077725863,2.03387525,58488.0,58487.0,0.00100007]
[1724077726066,1.93779483,58488.0,58487.0,0.00100007]
[1724077726330,1.94798408,58488.0,58487.0,0.00100007]
[1724077726611,2.29393408,58488.0,58487.0,0.00100007]
[1724077726827,2.37578602,58488.0,58487.0,0.00100007]
[1724077727024,2.37578602,58488.0,58478.0,0.000902]
[1724077727025,1.20201,58479.0,58478.0,0.000902]
[1724077727236,2.12412077,58479.0,58478.0,0.000902]
[1724077727436,2.89316806,58479.0,58478.0,0.000902]
[1724077727639,3.18969586,58479.0,58478.0,0.000902]
[1724077727840,1.202049,58477.0,58476.0,0.000902]
[1724077728074,2.36128869,58477.0,58476.0,0.000902]
[1724077728288,2.36128869,58477.0,58467.0,0.000902]
[1724077728289,1.202234,58468.0,58467.0,0.000902]
[1724077728487,2.11684494,58468.0,58467.0,0.000902]
[1724077728714,1.99479371,58468.0,58467.0,0.000902]
[1724077728980,2.09083115,58468.0,58467.0,0.000902]
[1724077729179,2.09083115,58468.0,58453.0,0.000902]
[1724077729180,1.002872,58454.0,58453.0,0.000902]
[1724077729385,1.003872,58454.0,58453.0,0.000902]
[1724077729590,1.31925867,58454.0,58453.0,0.000902]
[1724077730205,0.97910967,58454.0,58453.0,0.000902]
[1724077730835,1.34223861,58454.0,58453.0,0.001902]
[1724077730965,1.34523861,58454.0,58453.0,0.001902]
[1724077731580,1.32925867,58454.0,58453.0,0.001902]
[1724077731779,0.98710967,58454.0,58453.0,0.001902]
[1724077731985,0.1648373,58454.0,58453.0,0.001902]
[1724077732117,0.6870603,58454.0,58453.0,0.0059966]
[1724077732319,0.677723,58454.0,58453.0,0.002902]
[1724077732520,0.78064243,58454.0,58453.0,0.002902]
[1724077732988,1.2971402,58454.0,58453.0,0.002902]
[1724077733215,1.30647986,58454.0,58453.0,0.002902]
[1724077733390,1.65062886,58454.0,58453.0,0.002902]
[1724077733563,1.30847986,58454.0,58453.0,0.002902]
[1724077733769,1.30447986,58454.0,58453.0,0.002902]
[1724077734559,1.30647986,58454.0,58453.0,0.002902]
[1724077734759,1.30347986,58454.0,58453.0,0.002902]
[1724077735332,0.677723,58454.0,58453.0,0.002902]
[1724077735821,0.0833,58454.0,58453.0,0.002902]
[1724077736019,0.017,58454.0,58453.0,0.002902]
[1724077736170,0.017,58454.0,58453.0,0.00600094]
[1724077738605,0.188074,58454.0,58453.0,0.00600094]
[1724077739039,0.017,58454.0,58453.0,0.002902]
[1724077739251,0.017,58454.0,58453.0,0.858289]
[1724077739457,0.017,58454.0,58453.0,0.085102]
[1724077739664,0.017,58454.0,58453.0,0.25926226]
[1724077739865,0.017,58454.0,58453.0,0.60141726]
[1724077740074,0.171054,58461.0,58455.0,0.17107]
[1724077740287,0.235652,58462.0,58456.0,0.171067]
[1724077740496,0.0646,58462.0,58456.0,0.00308129]
[1724077740720,0.589996,58457.0,58456.0,0.00308129]
[1724077740944,0.589996,58457.0,58453.0,0.001902]
[1724077740945,0.172074,58454.0,58453.0,0.000902]
[1724077741175,1.03772077,58454.0,58453.0,0.001902]
[1724077741379,1.42428205,58454.0,58453.0,0.001902]
[1724077741582,1.42828205,58454.0,58453.0,0.001902]
[1724077741759,1.56958205,58454.0,58453.0,0.001902]
[1724077742215,1.57458205,58454.0,58453.0,0.001902]
[1724077742417,1.56958205,58454.0,58453.0,0.001902]
[1724077742827,1.57758205,58454.0,58453.0,0.002902]
[1724077743037,1.56958205,58454.0,58453.0,0.001902]
[1724077743452,1.92407043,58454.0,58453.0,0.001902]
[1724077743665,0.855562,58441.0,58440.0,0.00902]
[1724077743875,0.34246077,58441.0,58440.0,0.00902]
[1724077744083,0.68468577,58441.0,58440.0,0.00902]
[1724077744293,1.02691077,58441.0,58440.0,0.00902]
[1724077744504,1.02991077,58441.0,58440.0,0.00902]
[1724077744916,0.68427413,58441.0,58440.0,0.00902]
[1724077745330,1.02649913,58441.0,58440.0,0.00902]
[1724077745534,0.69727413,58441.0,58440.0,0.01002]
[1724077745952,1.04049913,58441.0,58440.0,0.01002]
[1724077746158,1.19714084,58441.0,58440.0,0.01002]
[1724077746361,1.55136584,58441.0,58440.0,0.01002]
[1724077746573,0.70927413,58441.0,58440.0,0.01002]
[1724077747006,1.03949913,58441.0,58440.0,0.00902]
[1724077747217,1.39772413,58441.0,58440.0,0.00902]
[1724077747422,1.54002413,58441.0,58440.0,0.00902]
[1724077747631,1.71935983,58441.0,58440.0,0.00902]
[1724077748072,1.81935983,58441.0,58440.0,0.00902]
[1724077748297,2.16158483,58441.0,58440.0,0.00902]
[1724077748717,2.18458483,58441.0,58440.0,0.00902]
[1724077750477,2.19477234,58441.0,58440.0,0.00902]
[1724077751309,2.17524537,58441.0,58440.0,0.00902]
[1724077751520,2.18458995,58441.0,58440.0,0.00902]
[1724077751728,1.346252,58433.0,58432.0,0.00902]
[1724077751942,1.86921724,58433.0,58432.0,0.00902]
[1724077752151,2.32748307,58433.0,58432.0,0.00902]
[1724077752366,2.32748307,58433.0,58429.0,0.000902]
[1724077752367,1.5453,58430.0,58429.0,0.000902]
[1724077752566,2.45103584,58430.0,58429.0,0.000902]
[1724077753230,2.46122679,58430.0,58429.0,0.000902]
[1724077753655,2.46122679,58430.0,58417.0,0.00902]
[1724077753656,0.91967,58420.0,58417.0,0.00902]
[1724077753860,1.45770507,58420.0,58417.0,0.00902]
[1724077754068,1.63205384,58420.0,58419.0,0.01203772]
[1724077754293,1.63205384,58420.0,58419.0,0.00902]
[1724077754518,1.62805384,58420.0,58419.0,0.00902]
[1724077754965,1.62805384,58420.0,58373.0,0.0785]
[1724077754966,1.584327,58395.0,58373.0,0.0785]
[1724077755179,0.518856,58382.0,58371.0,0.0002]
[1724077755391,1.25543078,58382.0,58371.0,0.0002]
[1724077755597,1.73009411,58382.0,58371.0,0.0002]
[1724077756094,2.63951388,58382.0,58371.0,0.0002]
[1724077756303,1.204205,58372.0,58371.0,0.0002]
[1724077756507,2.71016264,58372.0,58371.0,0.0002]
[1724077756722,2.81016264,58372.0,58371.0,0.0002]
[1724077757002,2.51586264,58372.0,58371.0,0.0002]
[1724077757215,2.98151141,58372.0,58371.0,0.0002]
[1724077757421,2.96539449,58372.0,58371.0,0.0002]
[1724077757845,1.98891572,58372.0,58371.0,0.0002]
[1724077758049,2.19571377,58372.0,58371.0,0.0002]
[1724077758255,1.92671495,58372.0,58371.0,0.0002]
[1724077758663,2.72934495,58372.0,58371.0,0.0002]
[1724077758811,2.37738522,58372.0,58371.0,0.0002]
[1724077759019,2.53209408,58372.0,58371.0,0.0002]
[1724077759196,2.71779408,58372.0,58371.0,0.0002]
[1724077759844,2.69479408,58372.0,58371.0,0.0002]
[1724077760262,2.67882263,58372.0,58371.0,0.0002]
[1724077760608,2.66949254,58372.0,58371.0,0.0002]
[1724077760834,2.32686254,58372.0,58371.0,0.001022]
[1724077761036,1.91341377,58372.0,58371.0,0.001022]
[1724077761427,1.91741377,58372.0,58371.0,0.001022]
[1724077762018,1.99551377,58372.0,58371.0,0.001022]
[1724077762246,1.99151377,58372.0,58371.0,0.001022]
[1724077762469,1.91341377,58372.0,58371.0,0.001022]
[1724077762650,2.08676254,58372.0,58371.0,0.001022]
[1724077762863,2.08876254,58372.0,58371.0,0.001022]
[1724077763006,2.08476254,58372.0,58371.0,0.001022]
[1724077763216,1.91341377,58372.0,58371.0,0.001022]
[1724077763428,0.88452377,58372.0,58371.0,0.001022]
[1724077763625,1.56978377,58372.0,58371.0,0.001022]
[1724077763831,0.88452377,58372.0,58371.0,0.001022]
[1724077764240,1.55578377,58372.0,58371.0,0.001022]
[1724077764437,1.54178377,58372.0,58371.0,0.001022]
[1724077764674,1.21315377,58372.0,58371.0,0.001022]
[1724077764877,1.22715377,58372.0,58371.0,0.001022]
[1724077765504,0.88452377,58372.0,58371.0,0.001022]
[1724077765704,0.54186,58372.0,58371.0,0.001022]
[1724077765914,0.713175,58372.0,58371.0,0.001022]
[1724077766117,0.52786,58372.0,58371.0,0.00412806]
[1724077766326,0.52786,58372.0,58371.0,0.001022]
[1724077766536,0.713175,58372.0,58371.0,0.001022]
[1724077766739,0.88449,58372.0,58371.0,0.001022]
[1724077766949,2.02299317,58372.0,58371.0,0.001022]
[1724077767162,0.85678,58358.0,58357.0,0.0758]
[1724077767363,1.54198877,58358.0,58357.0,0.0758]
[1724077767828,1.54198877,58358.0,58357.0,0.07871193]
[1724077768370,1.19927677,58358.0,58357.0,0.0758]
[1724077769113,1.20927677,58358.0,58357.0,0.0758]
[1724077769613,0.171373,58352.0,58348.0,1.5]
[1724077769900,1.88482277,58352.0,58347.0,0.0115555]
[1724077770103,1.88782277,58352.0,58351.0,0.00311193]
[1724077770323,2.40391854,58352.0,58351.0,0.0002]
[1724077770728,2.94656554,58352.0,58351.0,0.0002]
[1724077770943,2.94656554,58352.0,58347.0,0.0115555]
[1724077770944,1.916065,58348.0,58347.0,0.0115555]
[1724077771146,2.94766695,58348.0,58347.0,0.0115555]
[1724077771346,3.23839254,58348.0,58347.0,0.0115555]
[1724077771496,2.94766695,58348.0,58347.0,0.0115555]
[1724077771839,2.89562254,58348.0,58347.0,0.0115555]
[1724077772085,2.94766695,58348.0,58347.0,0.0115555]
[1724077772288,2.95699322,58348.0,58347.0,0.0115555]
[1724077772533,0.86216,58332.0,58331.0,0.0002]
[1724077772730,1.54736877,58332.0,58331.0,0.0002]
[1724077772865,1.54336877,58332.0,58331.0,0.0002]
[1724077773504,1.20050477,58332.0,58331.0,0.0002]
[1724077773672,1.54336877,58332.0,58331.0,0.0002]
[1724077774075,1.20250477,58332.0,58331.0,0.0002]
[1724077774307,1.27745648,58332.0,58331.0,0.0002]
[1724077774463,1.62232048,58332.0,58331.0,0.0002]
[1724077774680,1.62432048,58332.0,58331.0,0.0002]
[1724077774882,1.96718448,58332.0,58331.0,0.0002]
[1724077775088,1.97118448,58332.0,58331.0,0.0002]
[1724077775332,2.10818448,58332.0,58331.0,0.0091]
[1724077775686,2.03248448,58332.0,58331.0,0.0091]
[1724077776126,1.55336877,58332.0,58331.0,0.0091]
[1724077776330,1.54936877,58332.0,58331.0,0.0091]
[1724077776765,1.55836877,58332.0,58331.0,0.0091]
[1724077777008,0.69420877,58332.0,58331.0,0.0091]
[1724077777211,0.70220877,58332.0,58331.0,0.0091]
[1724077777413,0.87364077,58332.0,58331.0,0.0091]
[1724077777619,1.33925415,58332.0,58331.0,0.0091]
[1724077778018,0.70220877,58332.0,58331.0,0.0091]
[1724077778400,0.70220877,58332.0,58331.0,0.01271408]
[1724077778615,0.53086,58332.0,58331.0,0.18414908]
[1724077778829,0.53086,58332.0,58331.0,0.52701908]
[1724077779193,0.53086,58332.0,58331.0,0.86988908]
[1724077779401,0.53086,58332.0,58331.0,0.60481908]
[1724077779584,0.53086,58332.0,58331.0,0.94768908]
[1724077779794,0.53086,58332.0,58331.0,1.29055908]
[1724077779999,0.53086,58332.0,58331.0,1.35655908]
[1724077780461,0.53086,58332.0,58331.0,1.69942908]
[1724077780607,0.53086,58332.0,58331.0,1.35655908]
[1724077780849,0.52186,58332.0,58331.0,1.35655908]
[1724077781071,0.52186,58332.0,58331.0,2.85655908]
[1724077781269,0.52586,58332.0,58331.0,2.85655908]
[1724077781478,0.52586,58332.0,58331.0,3.37077785]
[1724077781680,0.52186,58332.0,58331.0,3.49377785]
[1724077781882,0.43856,58332.0,58331.0,3.49377785]
[1724077782083,0.37196,58332.0,58331.0,3.49377785]
[1724077782282,0.37196,58332.0,58331.0,3.15090785]
[1724077782533,0.37196,58332.0,58331.0,2.61368908]
[1724077783140,0.37196,58332.0,58331.0,2.95655908]
[1724077783340,0.37196,58332.0,58331.0,3.47077785]
[1724077783558,0.37196,58332.0,58331.0,3.49377785]
[1724077784117,0.37296,58332.0,58331.0,3.49477785]
[1724077784326,0.37296,58332.0,58331.0,3.42877785]
[1724077784327,0.009,58332.0,58331.0,3.42877785]
[1724077784532,0.51404632,58357.0,58355.0,0.0807]
[1724077784732,0.02528598,58356.0,58355.0,0.0807]
[1724077784937,0.02528598,58356.0,58355.0,0.252064]
[1724077785101,0.02528598,58356.0,58355.0,0.594793]
[1724077785309,0.02528598,58356.0,58355.0,0.0807]
[1724077785664,0.02528598,58356.0,58352.0,1.5]
[1724077785864,0.02528598,58355.0,58352.0,1.5]
[1724077786234,0.02528598,58354.0,58352.0,1.671372]
[1724077786401,0.02528598,58353.0,58352.0,1.671372]
[1724077786606,0.02528598,58353.0,58352.0,2.01412]
[1724077787193,0.342673,58365.0,58354.0,0.171366]
[1724077787194,0.014,58357.0,58354.0,0.171366]
[1724077787374,0.342687,58363.0,58355.0,0.171363]
[1724077787375,0.02529852,58356.0,58355.0,0.171363]
[1724077787577,0.02529852,58356.0,58355.0,0.856821]
[1724077788084,0.0641,58368.0,58363.0,0.171339]
[1724077788330,0.19665196,58367.0,58360.0,0.3427]
[1724077788600,0.02530319,58366.0,58358.0,0.34271]
[1724077788832,0.02530319,58366.0,58355.0,0.426129]
[1724077788833,0.02530319,58365.0,58362.0,0.171342]
[1724077789082,0.02530319,58365.0,58355.0,0.0854]
[1724077789083,0.02530319,58364.0,58355.0,0.0854]
[1724077789319,0.171325,58369.0,58363.0,0.171341]
[1724077789524,0.02530673,58368.0,58364.0,0.0825]
[1724077789778,0.02530673,58367.0,58364.0,0.253837]
[1724077789946,0.02530673,58366.0,58364.0,0.253837]
[1724077790157,0.02530673,58365.0,58364.0,0.253837]
[1724077790360,0.008,58368.0,58364.0,0.425176]
[1724077790565,0.008,58368.0,58367.0,0.513988]
[1724077790764,0.008,58368.0,58366.0,0.171331]
[1724077790999,0.171306,58375.0,58364.0,0.0825]
[1724077791221,0.003,58366.0,58364.0,0.425174]
[1724077791446,0.003,58366.0,58364.0,0.0825]
[1724077791665,0.003,58366.0,58365.0,0.00328953]
[1724077791861,1.36689133,58366.0,58365.0,0.00328953]
[1724077792067,1.39898132,58366.0,58365.0,0.00328953]
[1724077792484,1.204348,58365.0,58364.0,0.001]
[1724077792688,1.75978989,58365.0,58364.0,0.001]
[1724077792908,2.02058989,58365.0,58364.0,0.001]
[1724077793117,2.19193866,58365.0,58364.0,7e-08]
[1724077793321,2.16893866,58365.0,58364.0,7e-08]
[1724077794358,0.171381,58350.0,58346.0,0.52294632]
[1724077794566,0.02530527,58349.0,58346.0,0.0089]
[1724077794772,0.342762,58350.0,58346.0,0.0089]
[1724077794773,0.171386,58348.0,58347.0,0.00305926]
[1724077794951,0.02530108,58348.0,58346.0,0.0089]
[1724077795209,0.342739,58354.0,58347.0,0.00305926]
[1724077795426,0.171378,58351.0,58347.0,0.00305926]
[1724077795630,0.55551093,58353.0,58347.0,0.00305926]
[1724077795631,0.02530132,58350.0,58347.0,0.00305926]
[1724077795835,0.01432964,58349.0,58347.0,0.171388]
[1724077796012,0.005,58349.0,58348.0,0.00305926]
[1724077796240,0.01432979,58349.0,58348.0,0.00305926]
[1724077796651,0.01432979,58349.0,58348.0,0.51721426]
[1724077796850,0.01432979,58349.0,58348.0,0.00305926]
[1724077797182,0.17134877,58353.0,58348.0,0.00305926]
[1724077797385,0.02529948,58352.0,58350.0,0.171378]
[1724077797776,0.00932903,58351.0,58350.0,0.514138]
[1724077797982,0.0009053,58357.0,58354.0,0.0788]
[1724077798190,0.00932962,58356.0,58355.0,0.171363]
[1724077798390,0.00932962,58356.0,58355.0,1.671363]
[1724077798618,0.00932962,58356.0,58355.0,1.5]
[1724077798832,0.0009053,58357.0,58356.0,0.171361]
[1724077799049,0.0009053,58357.0,58356.0,0.514084]
[1724077799252,0.0009053,58357.0,58356.0,0.856807]
[1724077799456,0.0009053,58357.0,58356.0,2.014084]
[1724077799664,0.0009053,58357.0,58356.0,2.356807]
[1724077800305,0.0009053,58357.0,58356.0,2.014084]
[1724077800917,0.0009053,58357.0,58356.0,2.432007]
[1724077801129,0.0009053,58357.0,58356.0,2.189284]
[1724077801361,0.0039053,58357.0,58356.0,1.5752]
[1724077801587,0.0039053,58357.0,58356.0,0.0752]
[1724077801818,0.0039053,58357.0,58347.0,0.0089]
[1724077801819,0.342724,58356.0,58349.0,0.0752]
[1724077802033,0.18025407,58357.0,58356.0,0.171361]
[1724077802034,0.0089053,58357.0,58356.0,0.171361]
[1724077802241,0.0009053,58357.0,58356.0,0.171361]
[1724077802502,0.0009053,58357.0,58356.0,0.932007]
[1724077802705,0.0009053,58357.0,58356.0,1.27473]
[1724077803341,0.0009053,58357.0,58356.0,1.40863]
[1724077803752,0.0019053,58357.0,58356.0,1.40963]
[1724077803960,0.0019053,58357.0,58356.0,1.40863]
[1724077804162,0.0009053,58357.0,58356.0,1.40863]
[1724077804363,0.0019053,58357.0,58356.0,1.41563]
[1724077804801,0.0019053,58357.0,58356.0,1.92970177]
[1724077805038,0.0019053,58357.0,58356.0,2.32978477]
[1724077805258,0.0019053,58357.0,58356.0,1.95270177]
[1724077805458,0.0019053,58357.0,58356.0,3.45270177]
[1724077805892,0.0019053,58357.0,58356.0,2.91563]
[1724077806328,0.0019053,58357.0,58356.0,3.42970177]
[1724077806535,0.0019053,58357.0,58356.0,3.45270177]
[1724077806745,0.0009053,58357.0,58356.0,3.44570177]
[1724077807151,0.0019053,58357.0,58356.0,3.45870177]
[1724077808000,0.0029053,58357.0,58356.0,3.11897877]
[1724077808204,0.0019053,58357.0,58356.0,3.10597877]
[1724077808408,0.0009053,58357.0,58356.0,3.11697877]
[1724077808615,0.0019053,58357.0,58356.0,3.11697877]
[1724077808819,0.0029053,58357.0,58356.0,3.12297877]
[1724077809465,0.0029053,58357.0,58356.0,3.12380077]
[1724077809938,0.0019053,58357.0,58356.0,3.10980077]
[1724077810210,0.0019053,58357.0,58356.0,3.11680077]
[1724077810457,0.0019053,58357.0,58356.0,3.10380077]
[1724077810653,0.0029053,58357.0,58356.0,3.44952377]
[1724077810872,0.0039053,58357.0,58356.0,3.46252377]
[1724077811089,0.0009053,58357.0,58356.0,3.44652377]
[1724077811301,0.0009053,58357.0,58356.0,3.10380077]
[1724077811508,0.0029053,58357.0,58356.0,2.925452]
[1724077811926,0.0019053,58357.0,58356.0,2.922452]
[1724077813449,0.0019053,58357.0,58356.0,3.11680077]
[1724077813994,0.0029053,58357.0,58356.0,3.46252377]
[1724077814408,0.0019053,58357.0,58356.0,3.45952377]
[1724077814609,0.0029053,58357.0,58356.0,3.46252377]
[1724077814973,0.0029053,58357.0,58356.0,2.891552]
[1724077815846,0.25185407,58357.0,58356.0,0.01979174]
[1724077816026,1.20397174,58357.0,58356.0,0.01979174]
[1724077816298,1.23608008,58357.0,58356.0,0.016822]
[1724077816506,0.86817667,58357.0,58356.0,0.016822]
[1724077816731,0.1817509,58357.0,58356.0,0.003822]
[1724077816911,0.16462519,58357.0,58356.0,0.000822]
[1724077817120,0.16462519,58357.0,58356.0,0.00375251]
[1724077817325,0.1453053,58357.0,58356.0,0.00575251]
[1724077817537,0.07703849,58357.0,58356.0,0.00575251]
[1724077817792,0.07103849,58357.0,58356.0,0.51883651]
[1724077817994,0.08003849,58357.0,58356.0,0.51883651]
[1724077818186,0.01923849,58357.0,58356.0,1.20428251]
[1724077818389,0.0169053,58357.0,58356.0,1.20428251]
[1724077818799,0.0099053,58357.0,58356.0,1.20428251]
[1724077819026,0.0099053,58357.0,58356.0,0.86155951]
[1724077819232,0.0009053,58357.0,58356.0,2.36055951]
[1724077819439,0.0009053,58357.0,58356.0,2.43855951]
[1724077819642,0.0039053,58357.0,58356.0,3.07563128]
[1724077819846,0.0039053,58357.0,58356.0,2.88128251]
[1724077820049,0.0039053,58357.0,58356.0,2.53855951]
[1724077820258,0.0039053,58357.0,58356.0,2.54055951]
[1724077820498,0.0039053,58357.0,58356.0,3.07763128]
[1724077821515,0.0049053,58357.0,58356.0,2.54055951]
[1724077821729,0.0049053,58357.0,58356.0,2.11983651]
[1724077821935,0.0039053,58357.0,58356.0,0.61983651]
[1724077822352,0.0019053,58357.0,58356.0,2.46355951]
[1724077822754,0.0019053,58357.0,58356.0,2.47355951]
[1724077822971,0.0009053,58357.0,58356.0,2.46055951]
[1724077823181,0.0019053,58357.0,58356.0,2.46055951]
[1724077823382,0.0019053,58357.0,58356.0,1.50475251]
[1724077823499,0.01124539,58357.0,58356.0,0.00375251]
[1724077823700,0.18260439,58357.0,58356.0,0.00375251]
[1724077823902,0.86804039,58357.0,58356.0,0.005822]
[1724077824112,0.63974224,58357.0,58356.0,0.005822]
[1724077824315,0.63974224,58357.0,58356.0,0.000822]
[1724077824514,0.98146024,58357.0,58356.0,0.000822]
[1724077824787,1.17746983,58357.0,58356.0,0.000822]
[1724077824997,1.17646983,58357.0,58356.0,0.000822]